[Event "Titled Tuesday Blitz October 18 Late 2022"]
[White "Tomaszewski, Kacper"]
[Black "Romero Ruscalleda, Josep"]
[WhiteFideId "1127373"]
[BlackFideId "2231859"]
[WhiteElo "2211"]
[BlackElo "2312"]
[Result "1-0"]
[Round "08"]
[TimeControl "180+1"]
[Date "2022.10.19"]
[WhiteClock "0:00:35"]
[BlackClock "0:00:10"]

1. c4 {[%clk 0:03:00]}  g6 {[%clk 0:03:00]} 2. Nf3 {[%clk 0:03:00]}  Bg7 {[%clk 0:03:00]} 3. Nc3 {[%clk 0:02:58]}  d6 {[%clk 0:03:01]} 4. e4 {[%clk 0:02:58]}  e5 {[%clk 0:03:00]} 5. Be2 {[%clk 0:02:57]}  c5 {[%clk 0:02:59]} 6. O-O {[%clk 0:02:56]}  Ne7 {[%clk 0:02:58]} 7. d3 {[%clk 0:02:55]}  O-O {[%clk 0:02:58]} 8. Nd5 {[%clk 0:02:54]}  Nbc6 {[%clk 0:02:53]} 9. a3 {[%clk 0:02:53]}  Be6 {[%clk 0:02:52]} 10. Rb1 {[%clk 0:02:53]}  Bxd5 {[%clk 0:02:49]} 11. cxd5 {[%clk 0:02:52]}  Nd4 {[%clk 0:02:49]} 12. b4 {[%clk 0:02:50]}  b6 {[%clk 0:02:46]} 13. Nxd4 {[%clk 0:02:48]}  exd4 {[%clk 0:02:45]} 14. bxc5 {[%clk 0:02:38]}  bxc5 {[%clk 0:02:41]} 15. Qa4 {[%clk 0:02:35]}  f5 {[%clk 0:02:37]} 16. Rb7 {[%clk 0:02:32]}  fxe4 {[%clk 0:02:34]} 17. dxe4 {[%clk 0:02:31]}  a5 {[%clk 0:02:06]} 18. Bg4 {[%clk 0:02:25]}  h5 {[%clk 0:01:57]} 19. Be6+ {[%clk 0:02:25]}  Kh7 {[%clk 0:01:57]} 20. f4 {[%clk 0:02:19]}  Rb8 {[%clk 0:01:38]} 21. Rd7 {[%clk 0:02:18]}  Qe8 {[%clk 0:01:35]} 22. f5 {[%clk 0:02:19]}  gxf5 {[%clk 0:01:19]} 23. Bg5 {[%clk 0:02:14]}  Bf6 {[%clk 0:01:12]} 24. Bxf5+ {[%clk 0:02:12]}  Kh8 {[%clk 0:01:09]} 25. Bh6 {[%clk 0:01:55]}  Rg8 {[%clk 0:00:58]} 26. Bh3 {[%clk 0:01:36]}  Be5 {[%clk 0:00:50]} 27. Qd1 {[%clk 0:01:24]}  Rb2 {[%clk 0:00:43]} 28. Kh1 {[%clk 0:01:06]}  Qg6 {[%clk 0:00:34]} 29. Bd2 {[%clk 0:00:54]}  Rg7 {[%clk 0:00:27]} 30. Rf8+ {[%clk 0:00:47]}  Kh7 {[%clk 0:00:27]} 31. Rxe7 {[%clk 0:00:46]}  Rxe7 {[%clk 0:00:12]} 32. Bf5 {[%clk 0:00:46]}  Qxf5 {[%clk 0:00:12]} 33. Rxf5 {[%clk 0:00:45]}  Rg7 {[%clk 0:00:11]} 34. Qxh5+ {[%clk 0:00:34]}  Kg8 {[%clk 0:00:11]} 35. Qe8+ {[%clk 0:00:35]}  Kh7 {[%clk 0:00:10]} 36. Rh5# {[%clk 0:00:35]} 1-0


[Site "https://www.chess.com"]

[Event "Titled Tuesday Blitz October 18 Late 2022"]
[White "Urazayev, Arystanbek"]
[Black "Sukandar, Irine Kharisma"]
[WhiteFideId "13709810"]
[BlackFideId "7101937"]
[WhiteElo "2441"]
[BlackElo "2301"]
[Result "1-0"]
[Round "08"]
[TimeControl "180+1"]
[Date "2022.10.18"]
[WhiteClock "0:02:24"]
[BlackClock "0:01:39"]

1. d4 {[%clk 0:03:00]}  c5 {[%clk 0:02:58]} 2. d5 {[%clk 0:03:00]}  e5 {[%clk 0:02:58]} 3. e4 {[%clk 0:02:59]}  d6 {[%clk 0:02:57]} 4. Nc3 {[%clk 0:02:55]}  g6 {[%clk 0:02:55]} 5. Be2 {[%clk 0:02:53]}  Bg7 {[%clk 0:02:56]} 6. h4 {[%clk 0:02:53]}  h5 {[%clk 0:02:55]} 7. Nh3 {[%clk 0:02:53]}  Nh6 {[%clk 0:02:54]} 8. Ng5 {[%clk 0:02:52]}  O-O {[%clk 0:02:54]} 9. Be3 {[%clk 0:02:52]}  a6 {[%clk 0:02:51]} 10. a4 {[%clk 0:02:52]}  Ng4 {[%clk 0:02:50]} 11. Bxg4 {[%clk 0:02:51]}  Bxg4 {[%clk 0:02:50]} 12. f3 {[%clk 0:02:52]}  Bd7 {[%clk 0:02:50]} 13. Qd2 {[%clk 0:02:52]}  b5 {[%clk 0:02:33]} 14. axb5 {[%clk 0:02:51]}  Qb6 {[%clk 0:02:33]} 15. b4 {[%clk 0:02:43]}  Bxb5 {[%clk 0:02:31]} 16. bxc5 {[%clk 0:02:42]}  dxc5 {[%clk 0:02:31]} 17. d6 {[%clk 0:02:42]}  Bc4 {[%clk 0:02:25]} 18. Kf2 {[%clk 0:02:36]}  Nc6 {[%clk 0:02:24]} 19. Rhb1 {[%clk 0:02:29]}  Qd8 {[%clk 0:02:21]} 20. Bxc5 {[%clk 0:02:29]}  f6 {[%clk 0:02:16]} 21. Nh3 {[%clk 0:02:28]}  Kh7 {[%clk 0:02:15]} 22. Nd5 {[%clk 0:02:27]}  Bh6 {[%clk 0:02:01]} 23. Qc3 {[%clk 0:02:24]}  Bxd5 {[%clk 0:01:59]} 24. exd5 {[%clk 0:02:25]}  Nd4 {[%clk 0:01:56]} 25. Rb7+ {[%clk 0:02:24]}  Kh8 {[%clk 0:01:54]} 26. Bxd4 {[%clk 0:02:24]}  exd4 {[%clk 0:01:53]} 27. Qc7 {[%clk 0:02:25]}  Qxc7 {[%clk 0:01:43]} 28. dxc7 {[%clk 0:02:26]}  Rac8 {[%clk 0:01:39]} 29. d6 {[%clk 0:02:24]} 1-0


[Site "https://www.chess.com"]

[Event "Titled Tuesday Blitz October 18 Late 2022"]
[White "Winkels, Marcel"]
[Black "Izuzquiza Gonzalez, Javier"]
[WhiteFideId "1003887"]
[BlackFideId "3101029"]
[WhiteElo "1900"]
[BlackElo "2034"]
[Result "0-1"]
[Round "08"]
[TimeControl "180+1"]
[Date "2022.10.19"]
[WhiteClock "0:00:02"]
[BlackClock "0:00:10"]

1. e4 {[%clk 0:03:00]}  c5 {[%clk 0:02:59]} 2. Nf3 {[%clk 0:03:00]}  e6 {[%clk 0:02:59]} 3. d4 {[%clk 0:02:58]}  cxd4 {[%clk 0:03:00]} 4. Nxd4 {[%clk 0:02:58]}  a6 {[%clk 0:03:01]} 5. g3 {[%clk 0:02:56]}  Nf6 {[%clk 0:03:00]} 6. Bg2 {[%clk 0:02:56]}  Qc7 {[%clk 0:02:58]} 7. O-O {[%clk 0:02:54]}  Be7 {[%clk 0:02:57]} 8. Nc3 {[%clk 0:02:53]}  O-O {[%clk 0:02:56]} 9. Re1 {[%clk 0:02:54]}  d6 {[%clk 0:02:57]} 10. h3 {[%clk 0:02:48]}  Nc6 {[%clk 0:02:52]} 11. Nxc6 {[%clk 0:02:40]}  bxc6 {[%clk 0:02:53]} 12. a4 {[%clk 0:02:39]}  e5 {[%clk 0:02:43]} 13. a5 {[%clk 0:02:38]}  Be6 {[%clk 0:02:36]} 14. Be3 {[%clk 0:02:36]}  Nd7 {[%clk 0:02:25]} 15. f4 {[%clk 0:02:27]}  f5 {[%clk 0:02:17]} 16. exf5 {[%clk 0:02:21]}  Bxf5 {[%clk 0:02:13]} 17. g4 {[%clk 0:02:20]}  Be6 {[%clk 0:02:07]} 18. f5 {[%clk 0:02:20]}  Bf7 {[%clk 0:01:58]} 19. Qd2 {[%clk 0:02:14]}  d5 {[%clk 0:01:57]} 20. Bf2 {[%clk 0:02:11]}  Rab8 {[%clk 0:01:50]} 21. b3 {[%clk 0:02:09]}  Bb4 {[%clk 0:01:46]} 22. Qd3 {[%clk 0:01:48]}  Nc5 {[%clk 0:01:34]} 23. Qg3 {[%clk 0:01:45]}  Rfe8 {[%clk 0:01:11]} 24. Red1 {[%clk 0:01:40]}  Qe7 {[%clk 0:00:58]} 25. Na4 {[%clk 0:01:33]}  Nd7 {[%clk 0:00:49]} 26. Nb6 {[%clk 0:01:31]}  Nxb6 {[%clk 0:00:49]} 27. axb6 {[%clk 0:01:31]}  a5 {[%clk 0:00:47]} 28. c3 {[%clk 0:01:27]}  Bc5 {[%clk 0:00:47]} 29. Rxa5 {[%clk 0:01:21]}  Bxb6 {[%clk 0:00:47]} 30. Bxb6 {[%clk 0:01:15]}  Rxb6 {[%clk 0:00:47]} 31. b4 {[%clk 0:01:15]}  e4 {[%clk 0:00:40]} 32. Qe3 {[%clk 0:01:13]}  Rbb8 {[%clk 0:00:35]} 33. Rda1 {[%clk 0:01:12]}  Qe5 {[%clk 0:00:34]} 34. Ra7 {[%clk 0:01:08]}  Re7 {[%clk 0:00:33]} 35. Ra8 {[%clk 0:01:05]}  h6 {[%clk 0:00:31]} 36. Rxb8+ {[%clk 0:01:02]}  Qxb8 {[%clk 0:00:32]} 37. Qc5 {[%clk 0:01:01]}  Qc7 {[%clk 0:00:30]} 38. b5 {[%clk 0:00:55]}  cxb5 {[%clk 0:00:28]} 39. Qb4 {[%clk 0:00:47]}  Re8 {[%clk 0:00:20]} 40. Bf1 {[%clk 0:00:38]}  Qg3+ {[%clk 0:00:19]} 41. Bg2 {[%clk 0:00:37]}  e3 {[%clk 0:00:17]} 42. Qb1 {[%clk 0:00:10]}  Qf2+ {[%clk 0:00:15]} 43. Kh1 {[%clk 0:00:09]}  e2 {[%clk 0:00:14]} 44. Qe1 {[%clk 0:00:09]}  Qe3 {[%clk 0:00:13]} 45. Rb1 {[%clk 0:00:08]}  Re4 {[%clk 0:00:11]} 46. Rxb5 {[%clk 0:00:03]}  Rc4 {[%clk 0:00:10]} 47. Rb8+ {[%clk 0:00:03]}  Kh7 {[%clk 0:00:10]} 48. f6 {[%clk 0:00:03]}  Rxc3 {[%clk 0:00:10]} 49. fxg7 {[%clk 0:00:02]}  Rc1 {[%clk 0:00:10]} 0-1


[Site "https://www.chess.com"]

[Event "Titled Tuesday Blitz October 18 Late 2022"]
[White "Yeletsky, Ivan"]
[Black "Matinian, Nikita"]
[WhiteFideId "24180327"]
[BlackFideId "24129100"]
[WhiteElo "2391"]
[BlackElo "2422"]
[Result "0-1"]
[Round "08"]
[TimeControl "180+1"]
[Date "2022.10.18"]
[WhiteClock "0:00:01"]
[BlackClock "0:00:39"]

1. d4 {[%clk 0:03:00]}  Nf6 {[%clk 0:02:59]} 2. c4 {[%clk 0:02:59]}  g6 {[%clk 0:02:59]} 3. Nc3 {[%clk 0:02:56]}  Bg7 {[%clk 0:03:00]} 4. e4 {[%clk 0:02:56]}  O-O {[%clk 0:03:01]} 5. Nf3 {[%clk 0:02:56]}  d6 {[%clk 0:02:59]} 6. Be2 {[%clk 0:02:57]}  e5 {[%clk 0:02:58]} 7. O-O {[%clk 0:02:57]}  h6 {[%clk 0:02:58]} 8. Re1 {[%clk 0:02:48]}  Nc6 {[%clk 0:02:49]} 9. d5 {[%clk 0:02:47]}  Ne7 {[%clk 0:02:49]} 10. b4 {[%clk 0:02:44]}  a5 {[%clk 0:02:43]} 11. bxa5 {[%clk 0:02:45]}  Nd7 {[%clk 0:02:38]} 12. a4 {[%clk 0:02:35]}  f5 {[%clk 0:02:38]} 13. Nd2 {[%clk 0:02:29]}  Rxa5 {[%clk 0:02:36]} 14. Ba3 {[%clk 0:02:26]}  h5 {[%clk 0:02:07]} 15. Nb3 {[%clk 0:02:24]}  Ra8 {[%clk 0:02:08]} 16. c5 {[%clk 0:02:25]}  Nf6 {[%clk 0:01:53]} 17. cxd6 {[%clk 0:02:20]}  cxd6 {[%clk 0:01:54]} 18. Bf3 {[%clk 0:01:55]}  Nxe4 {[%clk 0:01:51]} 19. Bxe4 {[%clk 0:01:38]}  fxe4 {[%clk 0:01:52]} 20. Nxe4 {[%clk 0:01:39]}  Rxa4 {[%clk 0:01:50]} 21. Nxd6 {[%clk 0:01:27]}  Bg4 {[%clk 0:01:47]} 22. Qc1 {[%clk 0:01:08]}  Qb6 {[%clk 0:01:19]} 23. Qc2 {[%clk 0:00:38]}  Rxa3 {[%clk 0:01:13]} 24. Rxa3 {[%clk 0:00:29]}  Qxd6 {[%clk 0:01:13]} 25. Ra5 {[%clk 0:00:20]}  Rc8 {[%clk 0:01:08]} 26. Qd2 {[%clk 0:00:17]}  Bf5 {[%clk 0:01:01]} 27. h3 {[%clk 0:00:16]}  Rc2 {[%clk 0:01:00]} 28. Qe3 {[%clk 0:00:14]}  Nxd5 {[%clk 0:00:56]} 29. Qa7 {[%clk 0:00:07]}  Qb4 {[%clk 0:00:45]} 30. Rb1 {[%clk 0:00:05]}  Nc3 {[%clk 0:00:42]} 31. Qb8+ {[%clk 0:00:02]}  Kh7 {[%clk 0:00:42]} 32. Rf1 {[%clk 0:00:02]}  Qxb3 {[%clk 0:00:40]} 33. Ra8 {[%clk 0:00:02]}  Ne2+ {[%clk 0:00:40]} 34. Kh2 {[%clk 0:00:02]}  Nf4 {[%clk 0:00:39]} 35. g3 {[%clk 0:00:01]}  Nxh3 {[%clk 0:00:39]} 0-1


[Site "https://www.chess.com"]

[Event "Titled Tuesday Blitz October 18 Late 2022"]
[White "Yurtseven, Melih"]
[Black "Pinheiro, Iung Alicio de O."]
[WhiteFideId "6312160"]
[BlackFideId "2104350"]
[WhiteElo "2492"]
[BlackElo "2631"]
[Result "0-1"]
[Round "08"]
[TimeControl "180+1"]
[Date "2022.10.19"]
[WhiteClock "0:00:26"]
[BlackClock "0:00:12"]

1. c4 {[%clk 0:03:00]}  c5 {[%clk 0:02:55]} 2. Nf3 {[%clk 0:02:58]}  Nc6 {[%clk 0:02:46]} 3. Nc3 {[%clk 0:02:57]}  g6 {[%clk 0:02:44]} 4. e3 {[%clk 0:02:57]}  Nf6 {[%clk 0:02:39]} 5. d4 {[%clk 0:02:57]}  cxd4 {[%clk 0:02:39]} 6. exd4 {[%clk 0:02:58]}  d5 {[%clk 0:02:38]} 7. cxd5 {[%clk 0:02:55]}  Nxd5 {[%clk 0:02:38]} 8. Bc4 {[%clk 0:02:56]}  Nb6 {[%clk 0:01:46]} 9. Bb3 {[%clk 0:02:20]}  Bg7 {[%clk 0:01:39]} 10. d5 {[%clk 0:02:17]}  Na5 {[%clk 0:01:35]} 11. O-O {[%clk 0:02:15]}  O-O {[%clk 0:01:26]} 12. Bg5 {[%clk 0:02:12]}  h6 {[%clk 0:01:22]} 13. Bh4 {[%clk 0:02:12]}  Nxb3 {[%clk 0:01:17]} 14. axb3 {[%clk 0:02:11]}  g5 {[%clk 0:00:58]} 15. Bg3 {[%clk 0:02:10]}  Bxc3 {[%clk 0:00:52]} 16. bxc3 {[%clk 0:02:11]}  Qxd5 {[%clk 0:00:53]} 17. Qc2 {[%clk 0:02:10]}  Bf5 {[%clk 0:00:51]} 18. Qb2 {[%clk 0:02:10]}  Rfd8 {[%clk 0:00:42]} 19. h4 {[%clk 0:02:07]}  Be4 {[%clk 0:00:39]} 20. hxg5 {[%clk 0:01:52]}  Bxf3 {[%clk 0:00:38]} 21. gxf3 {[%clk 0:01:52]}  hxg5 {[%clk 0:00:38]} 22. Qe2 {[%clk 0:01:44]}  Rd7 {[%clk 0:00:34]} 23. c4 {[%clk 0:01:40]}  Qf5 {[%clk 0:00:33]} 24. Rfe1 {[%clk 0:01:30]}  a6 {[%clk 0:00:30]} 25. Qe3 {[%clk 0:01:29]}  Nc8 {[%clk 0:00:27]} 26. c5 {[%clk 0:01:22]}  Na7 {[%clk 0:00:23]} 27. Qc3 {[%clk 0:01:16]}  Nc6 {[%clk 0:00:21]} 28. Re4 {[%clk 0:01:11]}  Rad8 {[%clk 0:00:20]} 29. Kg2 {[%clk 0:01:09]}  Rd3 {[%clk 0:00:20]} 30. Qc4 {[%clk 0:00:58]}  Qxf3+ {[%clk 0:00:20]} 31. Kh2 {[%clk 0:00:58]}  Rd1 {[%clk 0:00:19]} 32. Re1 {[%clk 0:00:54]}  R1d4 {[%clk 0:00:15]} 33. Qc1 {[%clk 0:00:52]}  f6 {[%clk 0:00:13]} 34. Ra3 {[%clk 0:00:25]}  Kg7 {[%clk 0:00:13]} 35. b4 {[%clk 0:00:26]}  Rh8+ {[%clk 0:00:12]} 0-1


[Site "https://www.chess.com"]

[Event "Titled Tuesday Blitz October 18 Late 2022"]
[White "Zhurbinsky, David"]
[Black "Manukian, Artak"]
[WhiteFideId "2072904"]
[BlackFideId "13301373"]
[WhiteElo "2599"]
[BlackElo "2476"]
[Result "0-1"]
[Round "08"]
[TimeControl "180+1"]
[Date "2022.10.19"]
[WhiteClock "0:00:06"]
[BlackClock "0:01:01"]

1. e4 {[%clk 0:03:00]}  c6 {[%clk 0:02:58]} 2. d4 {[%clk 0:03:00]}  d5 {[%clk 0:02:58]} 3. Nc3 {[%clk 0:03:01]}  dxe4 {[%clk 0:02:57]} 4. Nxe4 {[%clk 0:03:02]}  Nf6 {[%clk 0:02:58]} 5. Nxf6+ {[%clk 0:03:02]}  exf6 {[%clk 0:02:59]} 6. c3 {[%clk 0:03:02]}  Bd6 {[%clk 0:02:57]} 7. Bd3 {[%clk 0:03:02]}  Na6 {[%clk 0:02:56]} 8. Qf3 {[%clk 0:03:00]}  O-O {[%clk 0:02:52]} 9. Ne2 {[%clk 0:02:58]}  Qd7 {[%clk 0:02:41]} 10. O-O {[%clk 0:02:56]}  Qg4 {[%clk 0:02:40]} 11. Qxg4 {[%clk 0:02:41]}  Bxg4 {[%clk 0:02:41]} 12. f3 {[%clk 0:02:39]}  Bd7 {[%clk 0:02:39]} 13. Bf4 {[%clk 0:02:28]}  Bxf4 {[%clk 0:02:38]} 14. Nxf4 {[%clk 0:02:29]}  Nc7 {[%clk 0:02:38]} 15. Rfe1 {[%clk 0:02:26]}  Rfe8 {[%clk 0:02:38]} 16. Kf2 {[%clk 0:02:26]}  Kf8 {[%clk 0:02:37]} 17. h4 {[%clk 0:02:20]}  h6 {[%clk 0:02:30]} 18. g4 {[%clk 0:02:15]}  Nd5 {[%clk 0:02:22]} 19. Nxd5 {[%clk 0:02:09]}  cxd5 {[%clk 0:02:23]} 20. Rxe8+ {[%clk 0:02:02]}  Rxe8 {[%clk 0:02:21]} 21. Re1 {[%clk 0:02:02]}  Rxe1 {[%clk 0:02:14]} 22. Kxe1 {[%clk 0:02:03]}  Ke7 {[%clk 0:02:14]} 23. Kf2 {[%clk 0:01:52]}  f5 {[%clk 0:02:06]} 24. Bxf5 {[%clk 0:01:28]}  Bxf5 {[%clk 0:02:02]} 25. gxf5 {[%clk 0:01:29]}  Kf6 {[%clk 0:02:03]} 26. f4 {[%clk 0:00:45]}  Kxf5 {[%clk 0:02:02]} 27. c4 {[%clk 0:00:45]}  dxc4 {[%clk 0:01:49]} 28. d5 {[%clk 0:00:46]}  f6 {[%clk 0:01:39]} 29. h5 {[%clk 0:00:38]}  b5 {[%clk 0:01:32]} 30. Ke3 {[%clk 0:00:32]}  g5 {[%clk 0:01:27]} 31. hxg6 {[%clk 0:00:13]}  Kxg6 {[%clk 0:01:28]} 32. d6 {[%clk 0:00:05]}  Kf7 {[%clk 0:01:24]} 33. Ke4 {[%clk 0:00:06]}  Ke6 {[%clk 0:01:13]} 34. a3 {[%clk 0:00:03]}  Kxd6 {[%clk 0:01:06]} 35. Kf5 {[%clk 0:00:04]}  Ke7 {[%clk 0:00:59]} 36. Kg6 {[%clk 0:00:05]}  a5 {[%clk 0:00:59]} 37. Kxh6 {[%clk 0:00:05]}  b4 {[%clk 0:00:59]} 38. Kg6 {[%clk 0:00:02]}  c3 {[%clk 0:00:59]} 39. axb4 {[%clk 0:00:02]}  axb4 {[%clk 0:00:59]} 40. bxc3 {[%clk 0:00:03]}  bxc3 {[%clk 0:01:00]} 41. f5 {[%clk 0:00:04]}  c2 {[%clk 0:01:00]} 42. Kh7 {[%clk 0:00:04]}  c1=Q {[%clk 0:01:01]} 43. Kh8 {[%clk 0:00:05]}  Qg5 {[%clk 0:01:00]} 44. Kh7 {[%clk 0:00:06]}  Kf7 {[%clk 0:01:01]} 45. Kh8 {[%clk 0:00:06]}  Qg7# {[%clk 0:01:01]} 0-1


[Site "https://www.chess.com"]

[Event "Titled Tuesday Blitz October 18 Late 2022"]
[White "Alexikov, Alexander"]
[Black "Banzea, Alexandru-Bogdan"]
[WhiteFideId "14103958"]
[BlackFideId "1232622"]
[WhiteElo "2222"]
[BlackElo "2294"]
[Result "1/2-1/2"]
[Round "09"]
[TimeControl "180+1"]
[Date "2022.10.19"]
[WhiteClock "0:00:34"]
[BlackClock "0:00:07"]

1. e4 {[%clk 0:03:00]}  c5 {[%clk 0:02:59]} 2. Nf3 {[%clk 0:03:00]}  a6 {[%clk 0:02:58]} 3. c3 {[%clk 0:02:59]}  d5 {[%clk 0:02:52]} 4. exd5 {[%clk 0:02:58]}  Nf6 {[%clk 0:02:53]} 5. d4 {[%clk 0:02:53]}  cxd4 {[%clk 0:02:52]} 6. Qxd4 {[%clk 0:02:51]}  Qxd5 {[%clk 0:02:51]} 7. Na3 {[%clk 0:02:37]}  Nc6 {[%clk 0:02:50]} 8. Qxd5 {[%clk 0:02:36]}  Nxd5 {[%clk 0:02:51]} 9. Nc4 {[%clk 0:02:35]}  Bf5 {[%clk 0:02:35]} 10. Ne3 {[%clk 0:02:33]}  Nxe3 {[%clk 0:02:28]} 11. Bxe3 {[%clk 0:02:33]}  e6 {[%clk 0:02:28]} 12. O-O-O {[%clk 0:02:27]}  Be7 {[%clk 0:02:20]} 13. Nd4 {[%clk 0:02:24]}  Nxd4 {[%clk 0:02:14]} 14. Bxd4 {[%clk 0:02:24]}  Bg5+ {[%clk 0:02:06]} 15. Be3 {[%clk 0:02:21]}  Bxe3+ {[%clk 0:02:05]} 16. fxe3 {[%clk 0:02:21]}  Ke7 {[%clk 0:02:03]} 17. Bd3 {[%clk 0:02:20]}  Bxd3 {[%clk 0:01:53]} 18. Rxd3 {[%clk 0:02:20]}  Rhd8 {[%clk 0:01:54]} 19. Rhd1 {[%clk 0:02:16]}  Rxd3 {[%clk 0:01:54]} 20. Rxd3 {[%clk 0:02:16]}  Rc8 {[%clk 0:01:54]} 21. Kd2 {[%clk 0:02:10]}  Rc5 {[%clk 0:01:54]} 22. e4 {[%clk 0:02:07]}  Rh5 {[%clk 0:01:53]} 23. h3 {[%clk 0:02:06]}  Rg5 {[%clk 0:01:54]} 24. g3 {[%clk 0:02:05]}  Rh5 {[%clk 0:01:49]} 25. g4 {[%clk 0:01:59]}  Rh4 {[%clk 0:01:47]} 26. Rg3 {[%clk 0:01:41]}  h5 {[%clk 0:01:41]} 27. gxh5 {[%clk 0:01:40]}  Kf8 {[%clk 0:01:37]} 28. Ke3 {[%clk 0:01:37]}  Rxh5 {[%clk 0:01:36]} 29. a4 {[%clk 0:01:34]}  Ra5 {[%clk 0:01:31]} 30. b3 {[%clk 0:01:33]}  Rh5 {[%clk 0:01:08]} 31. Kd4 {[%clk 0:01:23]}  f6 {[%clk 0:01:06]} 32. b4 {[%clk 0:01:20]}  g5 {[%clk 0:00:54]} 33. c4 {[%clk 0:01:06]}  Ke7 {[%clk 0:00:50]} 34. c5 {[%clk 0:01:05]}  Rh4 {[%clk 0:00:47]} 35. Re3 {[%clk 0:01:02]}  f5 {[%clk 0:00:41]} 36. Ke5 {[%clk 0:01:01]}  f4 {[%clk 0:00:21]} 37. Rd3 {[%clk 0:00:56]}  Rh8 {[%clk 0:00:19]} 38. Rd6 {[%clk 0:00:38]}  Rh6 {[%clk 0:00:16]} 39. Rd3 {[%clk 0:00:37]}  Rh8 {[%clk 0:00:13]} 40. Rd6 {[%clk 0:00:35]}  Rh6 {[%clk 0:00:10]} 41. Rd3 {[%clk 0:00:34]}  Rh8 {[%clk 0:00:07]} 1/2-1/2


[Site "https://www.chess.com"]

[Event "Titled Tuesday Blitz October 18 Late 2022"]
[White "Andreikin, Dmitry"]
[Black "Eljanov, Pavel"]
[WhiteFideId "4158814"]
[BlackFideId "14102951"]
[WhiteElo "2736"]
[BlackElo "2601"]
[Result "1-0"]
[Round "09"]
[TimeControl "180+1"]
[Date "2022.10.18"]
[WhiteClock "0:00:21"]
[BlackClock "0:00:08"]

1. d4 {[%clk 0:03:00]}  Nf6 {[%clk 0:02:59]} 2. c4 {[%clk 0:03:01]}  e6 {[%clk 0:02:59]} 3. Nf3 {[%clk 0:03:01]}  d5 {[%clk 0:02:59]} 4. Nc3 {[%clk 0:03:01]}  Nbd7 {[%clk 0:02:59]} 5. Qc2 {[%clk 0:02:59]}  dxc4 {[%clk 0:02:56]} 6. e4 {[%clk 0:02:59]}  c5 {[%clk 0:02:56]} 7. d5 {[%clk 0:02:54]}  exd5 {[%clk 0:02:54]} 8. e5 {[%clk 0:02:54]}  Nxe5 {[%clk 0:02:37]} 9. Nxe5 {[%clk 0:02:54]}  Bd6 {[%clk 0:02:37]} 10. Qa4+ {[%clk 0:02:49]}  Kf8 {[%clk 0:02:35]} 11. Nf3 {[%clk 0:02:45]}  Bd7 {[%clk 0:02:31]} 12. Qd1 {[%clk 0:02:33]}  Qe7+ {[%clk 0:02:15]} 13. Be2 {[%clk 0:02:33]}  d4 {[%clk 0:02:13]} 14. O-O {[%clk 0:02:32]}  dxc3 {[%clk 0:02:13]} 15. Bxc4 {[%clk 0:02:31]}  Bc6 {[%clk 0:01:56]} 16. Ng5 {[%clk 0:02:13]}  Rd8 {[%clk 0:01:32]} 17. Qb3 {[%clk 0:01:44]}  Qe5 {[%clk 0:01:31]} 18. g3 {[%clk 0:01:42]}  Qf5 {[%clk 0:01:07]} 19. Bxf7 {[%clk 0:01:33]}  Ne4 {[%clk 0:00:47]} 20. Ne6+ {[%clk 0:00:48]}  Ke7 {[%clk 0:00:46]} 21. Nxd8 {[%clk 0:00:49]}  Rxd8 {[%clk 0:00:46]} 22. Bc4 {[%clk 0:00:49]}  Qf3 {[%clk 0:00:42]} 23. Bd5 {[%clk 0:00:42]}  Nd2 {[%clk 0:00:21]} 24. Bxc6 {[%clk 0:00:26]}  Qxc6 {[%clk 0:00:10]} 25. Bxd2 {[%clk 0:00:24]}  cxd2 {[%clk 0:00:10]} 26. Qe3+ {[%clk 0:00:21]}  Kd7 {[%clk 0:00:08]} 27. Rad1 {[%clk 0:00:21]} 1-0


[Site "https://www.chess.com"]